[Event "37th Belgrade Trophy 2024"]
[Site "Belgrade"]
[Date "2024.11.23"]
[Round "3"]
[White "Kerner, Michael"]
[Black "Taskovic, Stefan"]
[Result "1-0"]
[ECO "C42"]
[WhiteElo "2086"]
[BlackElo "1911"]
[Annotator "RC"]
[PlyCount "55"]
[EventDate "2024.11.23"]
[EventCountry "SRB"]
[SourceTitle "playchess.com"]
[Source "ChessBase"]
[SourceQuality "1"]
[TimeControl "40/5400+30:900+30"]

1. e4 e5 2. Nf3 Nf6 3. Nxe5 d6 4. Nf3 Nxe4 5. d4 d5 6. Bd3 Bd6 7. O-O O-O 8. c4 c6 9. Nc3 Nxc3 10. bxc3 dxc4 11. Bxc4 Bf5 12. Re1 Nd7 13. Bg5 Qa5 14. Nh4 Be6 15. Bxe6 Qxg5 16. Nf3 Qd8 17. Bb3 Qf6 18. a4 a5 19. Ra2 b5 20. Qd3 b4 21. Rae2 Nb6 22. cxb4 axb4 23. Ne5 c5 24. dxc5 Bxc5 25. Qb5 Bd6 26. Nxf7 Rxf7 27. Qxb6 Kf8 28. Re6 1-0

[Event "37th Belgrade Trophy 2024"]
[Site "Belgrade"]
[Date "2024.11.25"]
[Round "3.1"]
[White "Leftheriotis, Alexandros"]
[Black "Shchekachev, Andrei"]
[Result "1-0"]
[ECO "B00"]
[WhiteElo "2165"]
[BlackElo "2448"]
[Annotator "TA"]
[PlyCount "61"]
[EventDate "2024.11.23"]
[EventCountry "SRB"]
[SourceTitle "playchess.com"]
[Source "ChessBase"]
[SourceQuality "1"]
[TimeControl "40/5400+30:900+30"]

{[%evp 9,60,22,24,21,29,3,12,0,14,22,44,39,36,7,30,0,0,0,0,0,0,0,0,0,0,-18,49,34,66,89,259,231,263,269,331,333,318,243,248,287,253,259,435,490,509,491,2239,1931,29993,29994,29996,29995,29999]} 1. e4 {[%emt 0:00:05]} Nc6 {[%emt 0:01:53]} 2. Nc3 {[%emt 0:01:18]} Nf6 {[%emt 0:10:14]} 3. d4 {[%emt 0:02:17]} d6 {[%emt 0:00:20]} 4. f3 {[%emt 0:05:18]} e5 {[%emt 0:08:17]} 5. Nge2 {[%emt 0:00:06]} exd4 {[%emt 0:04:30]} 6. Nxd4 {[%emt 0:00:06]} Be7 {[%emt 0:00:12]} 7. Be3 {[%emt 0:03:35]} O-O {[%emt 0:01:24]} 8. Qd2 {[%emt 0:04:51] The position is equal.} Nxd4 {[%emt 0:13:29]} 9. Bxd4 {[%emt 0:08:02]} Be6 {[%emt 0:00:54]} 10. O-O-O {[%emt 0:01:07]} c6 {[%emt 0:03:22]} 11. g4 {[%emt 0:21:20][%cal Bg2g4,Bg4g5][%mdl 32]} b5 {[%emt 0:05:32][%cal Bb7b5,Bb5b4][%mdl 32]} 12. Kb1 {[%emt 0:03:59]} b4 {[%emt 0:11:42]} 13. Ne2 {[%emt 0:00:18][%cal Oe2f4]} c5 {[%emt 0:10:04]} 14. Be3 {[%emt 0:01:43]} Qa5 {[%emt 0:02:27]} 15. b3 {[%emt 0:00:55]} d5 {[%emt 0:05:34]} 16. g5 $1 {[%emt 0:06:26]} (16. Nf4 dxe4 17. Qe1 (17. Nxe6 fxe6 18. Qe1 exf3 $17) 17... exf3 18. Nxe6 fxe6 $17) 16... d4 {[%emt 0:00:06]} 17. Bf2 {[%emt 0:00:06]} Nd7 {[%emt 0:01:38]} ({Better is} 17... Ne8 $1 $11) 18. f4 $14 {[%emt 0:01:35] [#] Threatens to win with f5.} Bg4 {[%emt 0:05:52]} 19. Rg1 {[%emt 0:03:18]} f5 {[%emt 0:00:06] A mistake that costs the game.} (19... Bh5 $16) 20. exf5 $18 {[%emt 0:02:30]} Bxf5 {[%emt 0:00:41]} 21. Ng3 {[%emt 0:01:34]} Bg4 {[%emt 0:03:47][%cal Oe7d6]} 22. Re1 {[%emt 0:21:31]} Bd6 {[%emt 0:01:14][%cal Be7d6,Bd6f4,Bf4e5][%mdl 32]} 23. h3 {[%emt 0:01:34][%cal Bh2h3,Bh3g4][%mdl 32]} Bxf4 {[%emt 0:00:48]} 24. Bc4+ {[%emt 0:00:13]} Kh8 {[%emt 0:00:08]} 25. Qd3 {[%emt 0:00:04]} Ne5 {[%emt 0:05:45] [#]} (25... Bxh3 $2 {too greedy.} 26. Rh1 Qd8 (26... Bxg5 $2 {perishes.} 27. Rxh3 h6 28. Qg6 $18) 27. Rxh3 $18) (25... Bxg5 $2 {is the wrong capture.} 26. hxg4 Qb6 (26... Rxf2 $2 27. Rh1 $18) 27. Re6 $18) (25... Be3 {is a better defense.}) 26. Rxe5 $1 {[%emt 0:00:53]} Bxe5 {[%emt 0:00:06]} 27. hxg4 {[%emt 0:00:04]} Rxf2 {[%emt 0:00:10]} (27... g6 $142 28. Rh1 Qc7) 28. Rh1 {[%emt 0:01:07][%csl Gd3][%cal Rh1h7]} g6 {[%emt 0:00:06]} 29. Qe4 {[%emt 0:00:44] White mates.} Re8 {[%emt 0:02:46]} 30. Qxg6 {[%emt 0:00:05][%csl Gh1][%cal Rg6h7]} Re7 {[%emt 0:00:09]} 31. Qg8# {[%emt 0:00:05] Weighted Error Value: White=0.07 (flawless) /Black=0.52.  Loses game:     	---       	Black=1      Mistake:       	---       	Black=3      Inaccurate:     	White=2     	Black=2      OK:         	White=9     	Black=9      Best:        	White=5     	Black=3      Strong:       	White=2     	---} 1-0

[Event "37th Belgrade Trophy 2024"]
[Site "Belgrade"]
[Date "2024.11.25"]
[Round "3.2"]
[White "Bryakin, Mikhail"]
[Black "Chelushkina, Irina"]
[Result "*"]
[ECO "A12"]
[WhiteElo "2435"]
[BlackElo "2141"]
[Annotator "RC"]
[PlyCount "37"]
[EventDate "2024.11.23"]
[EventCountry "SRB"]
[SourceTitle "playchess.com"]
[Source "ChessBase"]
[SourceQuality "1"]
[TimeControl "40/5400+30:900+30"]

1. Nf3 {[%emt 0:00:30]} d5 {[%emt 0:00:30]} 2. b3 {[%emt 0:00:30]} Bf5 {[%emt 0:00:30]} 3. Bb2 {[%emt 0:00:30]} Bc8 {[%emt 0:00:07]} 4. Bc1 {[%emt 0:06:25]} Bf5 {[%emt 0:02:54]} 5. Bb2 {[%emt 0:00:21]} e6 {[%emt 0:00:20]} 6. g3 {[%emt 0:01:29]} h6 {[%emt 0:00:34]} 7. Bg2 {[%emt 0:00:06]} Nf6 {[%emt 0:00:13]} 8. O-O {[%emt 0:00:20]} Be7 {[%emt 0:01:09]} 9. d3 {[%emt 0:00:19]} O-O {[%emt 0:02:11]} 10. Nbd2 {[%emt 0:00:11]} Bh7 {[%emt 0:01:48]} 11. c4 {[%emt 0:00:15]} c6 {[%emt 0:00:53]} 12. a3 {[%emt 0:00:35]} a5 {[%emt 0:00:57]} 13. Rc1 {[%emt 0:00:26]} Nbd7 {[%emt 0:02:23]} 14. Rc2 {[%emt 0:00:26]} Bd6 {[%emt 0:05:25]} 15. Qa1 {[%emt 0:02:34]} Qe7 {[%emt 0:01:00]} 16. cxd5 {[%emt 0:11:59]} cxd5 {[%emt 0:13:00]} 17. Nd4 {[%emt 0:01:25]} Rfc8 {[%emt 0:02:08]} 18. Rxc8+ {[%emt 0:03:15]} Rxc8 {[%emt 0:00:07]} 19. Rc1 {[%emt 0:00:12]} *

[Event "37th Belgrade Trophy 2024"]
[Site "Belgrade"]
[Date "2024.11.25"]
[Round "3.2"]
[White "Stanojoski, Zvonko"]
[Black "Prudnikova, Svetlana"]
[Result "1-0"]
[ECO "A12"]
[WhiteElo "2401"]
[BlackElo "2129"]
[Annotator "TA"]
[PlyCount "99"]
[EventDate "2024.11.23"]
[EventCountry "SRB"]
[SourceTitle "playchess.com"]
[Source "ChessBase"]
[SourceQuality "1"]
[TimeControl "40/5400+30:900+30"]

{[%evp 23,99,-33,-10,-15,-18,-8,12,16,9,20,13,6,15,10,10,1,9,9,7,0,0,3,13,9,9,9,9,9,10,0,57,0,0,0,0,0,10,16,74,0,0,0,0,0,0,0,0,0,168,167,167,167,201,198,177,177,248,247,287,243,312,320,317,323,329,315,342,285,285,278,539,551,552,534,512,498,556,547]} 1. Nf3 d5 2. b3 {[%emt 0:01:00]} Bf5 {[%emt 0:03:01]} 3. Bb2 {[%emt 0:06:16]} e6 {[%emt 0:00:20]} 4. g3 {[%emt 0:01:29]} h6 {[%emt 0:00:34]} 5. Bg2 {[%emt 0:00:06]} Nf6 {[%emt 0:00:13]} 6. O-O {[%emt 0:00:20]} Be7 {[%emt 0:01:09]} 7. d3 {[%emt 0:00:19]} O-O {[%emt 0:02:11]} 8. Nbd2 {[%emt 0:00:11]} Bh7 {[%emt 0:01:48]} 9. c4 {[%emt 0:00:15]} c6 {[%emt 0:00:53]} 10. a3 {[%emt 0:00:35]} a5 {[%emt 0:00:57]} 11. Rc1 {[%emt 0:00:26]} Nbd7 {[%emt 0:02:23]} 12. Rc2 {[%emt 0:00:26]} Bd6 {[%emt 0:05:25]} 13. Qa1 {[%emt 0:02:34]} Qe7 {[%emt 0:01:00]} 14. cxd5 {[%emt 0:11:59]} cxd5 {[%emt 0:13:00]} 15. Nd4 {[%emt 0:01:25]} Rfc8 {[%emt 0:02:08]} 16. Rxc8+ {[%emt 0:03:15]} Rxc8 {[%emt 0:00:07]} 17. Rc1 {[%emt 0:00:12]} Rc5 {[%emt 0:07:16]} 18. a4 {[%emt 0:02:33]} Qf8 {[%emt 0:02:24]} 19. Nb5 {[%emt 0:00:28]} Rxc1+ {[%emt 0:02:51]} 20. Qxc1 {[%emt 0:01:32]} Bb4 {[%emt 0:01:36]} 21. Nf3 {[%emt 0:01:12]} Qc5 {[%emt 0:06:45]} 22. Qd1 {[%emt 0:05:17]} Bg6 {[%emt 0:07:35]} 23. h3 {[%emt 0:03:09]} Nh5 {[%emt 0:06:44]} 24. Ne5 {[%emt 0:04:09]} Nxe5 {[%emt 0:03:11]} 25. Bxe5 {[%emt 0:00:07]} Qc8 {[%emt 0:10:55]} 26. Qa1 {[%emt 0:13:51]} f6 {[%emt 0:01:54]} (26... Qc2 $11) 27. Bc3 {[%emt 0:00:48]} (27. Bc7 $14) 27... Bxc3 $11 {[%emt 0:03:26]} 28. Nxc3 {[%emt 0:02:32]} Qc5 {[%emt 0:01:56]} 29. Kf1 {[%emt 0:00:25]} Be8 {[%emt 0:03:20] Prevents Nb5.} 30. Bf3 {[%emt 0:00:23][%cal Oc3b5]} f5 {[%emt 0:00:35] [#]} (30... g6 $11 {remains equal.}) 31. Bxh5 {[%emt 0:01:56]} (31. Nb5 $1 $16) 31... Bxh5 $16 {[%emt 0:00:01][%mdl 4096] Endgame KQB-KQN} 32. Nb5 {[%emt 0:00:11]} Qc2 {[%emt 0:02:09][%csl LRb3,LRe2]} 33. Nd4 {[%emt 0:01:38][%csl LRc2,LRe6]} Qd2 {[%emt 0:00:08]} 34. g4 {[%emt 0:00:22]} (34. Nxe6 $2 Qxe2+ 35. Kg1 Qxe6 $19) 34... fxg4 {[%emt 0:03:34]} 35. Nxe6 {[%emt 0:00:07][%csl Ge6][%cal Ra1g7]} Kf7 $2 {[%emt 0:00:07]} (35... d4 $1 $11 36. Qxd4 Qc1+ (36... Qd1+ $2 37. Kg2 $18) 37. Kg2 Qc6+ 38. Qe4 gxh3+ 39. Kxh3 Qxe4 40. dxe4 Bxe2) 36. hxg4 $18 {[%emt 0:03:55]} (36. Qxg7+ Kxe6 37. hxg4 Bf7 $11) (36. Nxg7 Bg6 37. hxg4 Qf4 $19) 36... Kxe6 {[%emt 0:01:44]} 37. gxh5 {[%emt 0:00:03] KQ-KQ. White is a pawn up.} Qg5 {[%emt 0:00:40][%cal Og5e5]} 38. Qc3 {[%emt 0:01:17]} Qxh5 {[%emt 0:00:37][%cal Rh5h1]} 39. Qxg7 {[%emt 0:03:46]} (39. Qxa5 $2 Qh1#) 39... Kd6 {[%emt 0:01:03]} (39... Qh1+ {might work better.} 40. Qg1 Qxg1+ 41. Kxg1 d4) 40. Ke1 {[%emt 0:00:00]} (40. Qxb7 $2 Qh1#) 40... Qh1+ {[%emt 0:00:00]} 41. Kd2 {[%emt 0:02:32]} h5 {[%emt 0:04:51][%cal Bh6h5,Bh5h4,Bh4h3,Bh3h2][%mdl 32]} 42. f4 {[%emt 0:01:17][%cal Bf2f4,Bf4f5,Bf5f6,Bf6f7][%mdl 32]} (42. Qxb7 Qa1 $16) 42... h4 {[%emt 0:04:23]} 43. Qe5+ {[%emt 0:00:31]} ({Much less strong is} 43. Qxb7 $6 Qa1 $18) 43... Kc6 {[%emt 0:01:37]} 44. f5 {[%emt 0:01:01] aiming for f6.} h3 {[%emt 0:01:09]} 45. f6 {[%emt 0:01:21] White threatens Qe6+ and mate.} Qf1 {[%emt 0:02:37]} 46. Qe8+ {[%emt 0:00:34]} Kb6 $2 {[%emt 0:04:59]} (46... Kc7) 47. f7 {[%emt 0:02:49]} h2 {[%emt 0:00:05]} 48. Qb5+ {[%emt 0:00:21]} ({Weaker is} 48. f8=R Qxf8 49. Qxf8 h1=Q 50. Qf6+ Kc7 51. Qe5+ Kc6 52. Qe6+ Kc7 53. Qe7+ Kb6 54. Qd6+ Ka7 55. Qc5+ Kb8 56. Qxa5 Qh6+ 57. Kc2 Qd6 $18) 48... Kc7 {[%emt 0:00:31] and ...Qf4+ would now be decisive} 49. Qxa5+ {[%emt 0:01:06]} Kc6 {[%emt 0:01:18]} 50. Qb5+ {[%emt 0:00:21]} 1-0

[Event "37th Belgrade Trophy 2024"]
[Site "Belgrade"]
[Date "2024.11.25"]
[Round "3.3"]
[White "Bryakin, Mikhail"]
[Black "Chelushkina, Irina"]
[Result "1-0"]
[ECO "D43"]
[WhiteElo "2435"]
[BlackElo "2141"]
[Annotator "TA"]
[PlyCount "45"]
[EventDate "2024.11.23"]
[EventCountry "SRB"]
[SourceTitle "playchess.com"]
[Source "ChessBase"]
[SourceQuality "1"]
[TimeControl "40/5400+30:900+30"]

{[%evp 10,45,20,-12,37,29,72,68,76,76,77,72,134,128,147,148,144,138,159,142,140,145,181,187,206,191,245,300,278,284,295,305,303,305,320,331,330,312]} 1. d4 {[%emt 0:00:02]} Nf6 {[%emt 0:02:32]} 2. c4 {[%emt 0:00:10]} e6 {[%emt 0:00:03]} 3. Nc3 {[%emt 0:00:39]} d5 {[%emt 0:00:43]} 4. Nf3 {[%emt 0:01:47]} c6 {[%emt 0:02:13]} 5. Bg5 {[%emt 0:01:01]} h6 {[%emt 0:00:21]} 6. Bh4 {[%emt 0:01:21]} a6 {[%emt 0:04:35]} (6... dxc4 $11 7. e4 g5) 7. e3 $14 {[%emt 0:01:41]} b5 {[%emt 0:00:04]} 8. c5 {[%emt 0:03:31]} Nbd7 {[%emt 0:01:18] White is slightly better.} 9. Bd3 {[%emt 0:04:18]} Be7 {[%emt 0:00:42]} 10. O-O {[%emt 0:02:20] White is more active.} b4 {[%emt 0:07:40]} (10... a5 $142) 11. Ne2 $16 {[%emt 0:01:45]} Qc7 {[%emt 0:07:41]} 12. a3 {[%emt 0:02:45]} bxa3 {[%emt 0:00:55]} 13. Rxa3 {[%emt 0:01:51]} Nh5 {[%emt 0:00:19][%cal Bf6h5,Bh5g7,Bg7e8][%mdl 32]} 14. Bxe7 {[%emt 0:01:16]} Kxe7 {[%emt 0:00:04]} 15. Qc2 {[%emt 0:02:27]} g5 {[%emt 0:06:32][%cal Bg7g5,Bg5g4][%mdl 32]} 16. Rfa1 {[%emt 0:00:55]} g4 {[%emt 0:03:25]} 17. Nh4 {[%emt 0:00:41]} Nb8 {[%emt 0:00:11] [#]} (17... Kf8 {was called for.} 18. b4 (18. Bxa6 Rxa6 19. Rxa6 Bxa6 $16) 18... Kg7) 18. Bg6 $1 {[%emt 0:04:20][%mdl 512]} Ng7 {[%emt 0:01:31] [#] White has a decisive advantage.} 19. e4 $1 {[%emt 0:01:33]} Kd8 {[%emt 0:03:14]} (19... Ke8 20. exd5) 20. exd5 {[%emt 0:01:13]} cxd5 {[%emt 0:14:27]} 21. Bd3 {[%emt 0:01:01]} Nc6 {[%emt 0:00:01]} 22. Qd2 {[%emt 0:04:16]} ({Less strong is} 22. Bxa6 Rxa6 23. Rxa6 Nb4 $16) 22... Ne8 {[%emt 0:00:14]} 23. Bxa6 {[%emt 0:01:04] Black got outplayed after the opening.   Weighted Error Value: White=0.03 (flawless) /Black=0.21 (precise) .  Mistake:       	---       	Black=2      Inaccurate:     	---       	Black=1      OK:         	White=10    	Black=5} 1-0

[Event "37th Belgrade Trophy 2024"]
[Site "Belgrade"]
[Date "2024.11.25"]
[Round "3.3"]
[White "Stanojoski, Zvonko"]
[Black "Prudnikova, Svetlana"]
[Result "*"]
[ECO "D43"]
[WhiteElo "2401"]
[BlackElo "2129"]
[Annotator "RC"]
[PlyCount "35"]
[EventDate "2024.11.23"]
[EventCountry "SRB"]
[SourceTitle "playchess.com"]
[Source "ChessBase"]
[SourceQuality "1"]
[TimeControl "40/5400+30:900+30"]

1. d4 {[%emt 0:00:02]} Nf6 {[%emt 0:02:32]} 2. c4 {[%emt 0:00:10]} e6 {[%emt 0:00:03]} 3. Nc3 {[%emt 0:00:39]} d5 {[%emt 0:00:43]} 4. Nf3 {[%emt 0:01:47]} c6 {[%emt 0:02:13]} 5. Bg5 {[%emt 0:01:01]} h6 {[%emt 0:00:21]} 6. Bh4 {[%emt 0:01:21]} a6 {[%emt 0:04:35]} 7. e3 {[%emt 0:01:41]} b5 {[%emt 0:00:04]} 8. c5 {[%emt 0:03:31]} Nbd7 {[%emt 0:01:18]} 9. Bd3 {[%emt 0:04:18]} Be7 {[%emt 0:00:42]} 10. O-O {[%emt 0:02:20]} b4 {[%emt 0:07:40]} 11. Ne2 {[%emt 0:01:45]} Qc7 {[%emt 0:07:41]} 12. a3 {[%emt 1:17:55]} bxa3 {[%emt 0:00:55]} 13. Rxa3 {[%emt 0:01:51]} Nh5 {[%emt 0:00:19]} 14. Bxe7 {[%emt 1:14:19]} Kxe7 {[%emt 0:00:04]} 15. Qc2 {[%emt 0:02:27]} g5 {[%emt 0:06:32]} 16. Rfa1 {[%emt 0:00:55]} g4 {[%emt 0:03:25]} 17. Nh4 {[%emt 0:00:41]} Nb8 {[%emt 0:00:11]} 18. Bg6 {[%emt 0:04:20]} *

[Event "37th Belgrade Trophy 2024"]
[Site "Belgrade"]
[Date "2024.11.25"]
[Round "3.4"]
[White "Baghdasaryan, Davit"]
[Black "Sutormin, Danila"]
[Result "1/2-1/2"]
[ECO "B37"]
[WhiteElo "2121"]
[BlackElo "2394"]
[Annotator "TA"]
[PlyCount "157"]
[EventDate "2024.11.23"]
[EventCountry "SRB"]
[SourceTitle "playchess.com"]
[Source "ChessBase"]
[SourceQuality "1"]
[TimeControl "40/5400+30:900+30"]

{[%evp 54,157,-123,-125,-133,-104,-82,-88,0,0,-6,0,0,0,0,0,0,0,0,-507,-64,-64,-46,-91,-82,-97,-63,-86,-82,-81,-88,-212,-88,-85,0,-212,-117,-132,-130,-131,-36,-123,-123,-136,-136,-129,-129,-129,-37,-172,-170,-180,-180,-162,-135,-194,-187,-177,-188,-187,-149,-152,-152,-188,-161,-158,-152,-152,-152,-147,-77,-147,0,-140,-140,-140,-140,-140,-156,-154,-140,-140,-133,-169,-169,-166,-140,-140,-125,-125,-38,-38,-38,-38,-38,-44,0,0,0,-44,0,-4,0,-44,0,-9]} 1. e4 {[%emt 0:00:04]} c5 {[%emt 0:01:20]} 2. Nf3 {[%emt 0:00:19]} g6 {[%emt 0:00:46]} 3. d4 {[%emt 0:01:35]} cxd4 {[%emt 0:00:13]} 4. Nxd4 {[%emt 0:01:17]} Nc6 {[%emt 0:03:36]} 5. c4 {[%emt 0:00:13]} Nf6 {[%emt 0:00:32]} 6. Nc3 {[%emt 0:00:13]} d6 {[%emt 0:00:17]} 7. Nc2 {[%emt 0:00:27]} Bg7 {[%emt 0:00:47]} 8. Be2 {[%emt 0:00:19]} O-O {[%emt 0:00:13]} 9. O-O {[%emt 0:00:05]} Be6 {[%emt 0:15:38]} 10. Bd2 {[%emt 0:02:13]} Nd7 {[%emt 0:01:33]} 11. Rb1 {[%emt 0:20:56]} Rc8 {[%emt 0:08:35]} 12. b3 {[%emt 0:04:25]} Nc5 {[%emt 0:03:22]} 13. f3 {[%emt 0:01:32]} f5 {[%emt 0:03:51]} 14. b4 {[%emt 0:12:18]} Nd7 {[%emt 0:01:36]} 15. Nd5 {[%emt 0:06:08]} fxe4 {[%emt 0:19:06]} 16. fxe4 {[%emt 0:00:27]} Rxf1+ {[%emt 0:00:44]} 17. Qxf1 {[%emt 0:07:03]} Nf6 {[%emt 0:08:06]} 18. Qf4 {[%emt 0:03:27]} Ne5 {[%emt 0:11:59]} 19. Nce3 {[%emt 0:01:08]} Kh8 {[%emt 0:04:05]} 20. h4 {[%emt 0:01:43]} Qd7 {[%emt 0:02:45]} 21. Nxf6 {[%emt 0:09:36]} Bxf6 {[%emt 0:02:34]} 22. h5 {[%emt 0:04:18]} g5 {[%emt 0:01:07]} 23. Qf1 {[%emt 0:02:24]} Qa4 {[%emt 0:00:47]} 24. Nd5 {[%emt 0:04:22]} Bxd5 {[%emt 0:01:35]} 25. exd5 {[%emt 0:00:58]} Qc2 {[%emt 0:02:41]} 26. Be3 {[%emt 0:05:11]} Qe4 {[%emt 0:01:41]} 27. Bxa7 {[%emt 0:01:52]} Ra8 {[%emt 0:00:30]} (27... Nxc4 28. Rc1 b6 (28... b5 29. Qf3 $17) 29. Qf3 $15 (29. Rxc4 $2 $19)) 28. Bf2 {[%emt 0:00:49]} Rxa2 {[%emt 0:00:37]} 29. Re1 {[%emt 0:00:32]} Qf4 {[%emt 0:01:26]} 30. c5 {[%emt 0:01:55] [#]} Nd3 {[%emt 0:00:59]} (30... Kg7 $1 $17 {Black wants to play ...g4.} 31. b5 (31. cxd6 exd6) 31... dxc5 32. Bxc5 Qe4) 31. g3 $1 $11 {[%emt 0:03:27]} (31. Bxd3 $2 Rxf2 32. Qxf2 Bd4 $19 (32... Qxb4 $2 33. Kh1 $18)) 31... Qxf2+ {[%emt 0:00:43]} 32. Qxf2 {[%emt 0:00:02]} Nxf2 {[%emt 0:00:01]} 33. Kxf2 {[%emt 0:00:01]} dxc5 {[%emt 0:00:29]} 34. bxc5 {[%emt 0:00:10]} Bd4+ {[%emt 0:00:14]} 35. Kf3 {[%emt 0:01:00]} Bxc5 {[%emt 0:00:24]} 36. Rb1 $2 {[%emt 0:02:34][%mdl 8192]} (36. h6 $11) 36... b6 $2 {[%emt 0:00:19]} (36... g4+ $1 $19 37. Kxg4 Rxe2 38. Rxb7 Kg7) 37. Bb5 $15 {[%emt 0:01:21]} Rd2 {[%emt 0:01:19]} 38. Ke4 {[%emt 0:02:28]} Kg7 {[%emt 0:00:36]} 39. Rb3 {[%emt 0:00:21]} g4 {[%emt 0:01:33]} 40. Bd7 {[%emt 0:00:00]} Rd4+ {[%emt 0:00:00]} 41. Ke5 {[%emt 0:01:48]} Kh6 {[%emt 0:02:43]} 42. Rb1 {[%emt 0:02:00]} (42. d6 $17 exd6+ (42... Bxd6+ $2 43. Kxd4 Kxh5 44. Kd5 $18) 43. Kf6) 42... Rc4 {[%emt 0:05:44]} (42... Kxh5 43. Rh1+ Kg6 44. Bf5+ Kg5 45. Rxh7 $11) (42... Kg5 $1 $19 {[%cal Od4d3]} 43. Rf1 Rb4 (43... Kxh5 44. Rh1+ Kg6 45. Bf5+ Kg5 46. Rxh7 $11) 44. Rf5+ Kh6) 43. Kf5 $17 {[%emt 0:01:04] [#]} Rd4 {[%emt 0:03:33]} (43... Kxh5 44. Rh1#) (43... Bf2 $1 $17 {[%cal Rf2g3]} 44. Rb3 Kxh5) 44. Ke5 $19 {[%emt 0:03:33]} Rd3 {[%emt 0:03:09]} (44... Kxh5 45. Rh1+ Kg6 46. Bf5+ Kg7 47. Rxh7+ Kf8 48. Rh8+ Kf7 49. Rh7+ Kg8 50. Rh4 $15) (44... Kg5 $1 $19 {[%cal Od4d3]} 45. Rf1 Rd3 (45... Kxh5 46. Rh1+ Kg6 47. Bf5+ Kg7 48. Rxh7+ Kg8 49. Rh4 $11) 46. Rf5+ Kh6) 45. Bxg4 {[%emt 0:00:34]} Kg5 {[%emt 0:01:07]} 46. Bf5 {[%emt 0:01:41]} Re3+ {[%emt 0:00:29]} (46... Rxg3 47. Bxh7 Kxh5 48. Ke4 $15) 47. Be4 {[%emt 0:00:06]} h6 $1 {[%emt 0:00:15]} (47... Kxh5 48. Kf4 Rxe4+ (48... Kh6 49. Rh1+ Kg7 50. Rxh7+ Kf8 51. d6 $11) 49. Kxe4 $16) ({Don't do} 47... Rxg3 48. Bxh7 Kxh5 49. Bf5 $15) 48. Rf1 {[%emt 0:04:32]} Rxg3 {[%emt 0:02:19]} 49. Bf3 {[%emt 0:02:11]} b5 {[%emt 0:00:28]} 50. Ke4 {[%emt 0:00:15] [#]} b4 {[%emt 0:00:20]} (50... Rh3 $1 $17 {Threatens to win with ...b4.} 51. Rc1 Rh4+ 52. Kd3 Rd4+ 53. Kc2 Kf4) 51. Rb1 {[%emt 0:02:37]} (51. Rc1 $15 Bd6 52. Rf1) 51... Rh3 $19 {[%emt 0:00:42]} 52. Rb3 {[%emt 0:01:17]} Rh4+ {[%emt 0:00:12]} 53. Kd3 {[%emt 0:00:08]} Kf4 {[%emt 0:00:25]} 54. Bd1 {[%emt 0:00:56]} (54. Kc4 $17 Bd6 55. Rd3) 54... Bd6 {[%emt 0:00:44]} 55. Be2 {[%emt 0:00:34]} Ke5 {[%emt 0:00:22]} 56. Bf3 {[%emt 0:00:21]} Rh3 {[%emt 0:00:18]} 57. Kc4 {[%emt 0:00:26]} Rh2 {[%emt 0:00:45]} 58. Kd3 {[%emt 0:00:41]} Rf2 {[%emt 0:00:15]} 59. Kc4 {[%emt 0:00:22]} Kf4 {[%emt 0:00:49]} 60. Bd1 {[%emt 0:00:26]} Ke4 {[%emt 0:00:31]} 61. Rd3 {[%emt 0:00:41]} Be5 {[%emt 0:00:56]} (61... Rf8 $142 {( -> ...Rc8+)} 62. Bg4 e5) 62. Bb3 {[%emt 0:00:25]} (62. Rh3 $142) 62... Bd6 {[%emt 0:01:07]} 63. Bd1 $1 {[%emt 0:00:07]} Rf8 {[%emt 0:00:05]} 64. Rd4+ {[%emt 0:01:00]} Ke5 {[%emt 0:00:13]} 65. Rd3 {[%emt 0:00:30]} Rc8+ {[%emt 0:00:16]} 66. Kb3 {[%emt 0:00:07]} Kf4 {[%emt 0:00:23]} 67. Bc2 {[%emt 0:00:26]} Ra8 {[%emt 0:00:27]} 68. Rd4+ {[%emt 0:00:49]} Ke5 {[%emt 0:00:50]} 69. Rd3 {[%emt 0:00:33]} Ra1 {[%emt 0:00:21]} 70. Kc4 {[%emt 0:00:35]} Rc1 {[%emt 0:00:47]} 71. Kb3 {[%emt 0:00:25]} Kf4 {[%emt 0:00:33]} (71... Rg1 $17 72. Bd1 Rg2) 72. Rd1 $15 {[%emt 0:00:24]} Rxd1 {[%emt 0:00:08]} 73. Bxd1 {[%emt 0:00:01]} Ke3 {[%emt 0:00:06]} 74. Bg4 {[%emt 0:00:17]} Kf4 {[%emt 0:00:12]} 75. Be6 {[%emt 0:00:05]} Ke3 {[%emt 0:00:03]} 76. Bf7 {[%emt 0:00:03]} Kf4 {[%emt 0:00:04]} 77. Be6 {[%emt 0:00:03]} Ke3 {[%emt 0:00:04]} (77... Kg5 $5 78. Bf7 $8 Kg4 $11) 78. Bf7 {[%emt 0:00:03]} Kf4 {[%emt 0:00:03]} 79. Be6 {[%emt 0:00:04]} 1/2-1/2